[Event "Titled Tuesday Blitz June 20 Early 2023"]
[White "Rastbod, Ali"]
[Black "Tabatabaei, M. Amin"]
[WhiteFideId "12567477"]
[BlackFideId "12521213"]
[WhiteElo "2281"]
[BlackElo "2575"]
[Result "0-1"]
[Round "3"]
[TimeControl "180+2"]
[Date "2023.06.20"]
[WhiteClock "0:00:00"]
[BlackClock "0:00:17"]
[Board "18"]

1. c4 {[%clk 0:03:00]}  e6 {[%clk 0:02:58]} 2. g3 {[%clk 0:03:01]}  d5 {[%clk 0:02:59]} 3. Bg2 {[%clk 0:03:01]}  Nf6 {[%clk 0:02:59]} 4. Nf3 {[%clk 0:03:01]}  Be7 {[%clk 0:02:57]} 5. O-O {[%clk 0:03:02]}  O-O {[%clk 0:02:58]} 6. d4 {[%clk 0:03:01]}  dxc4 {[%clk 0:02:57]} 7. Qc2 {[%clk 0:03:01]}  a6 {[%clk 0:02:58]} 8. a4 {[%clk 0:03:01]}  Nbd7 {[%clk 0:02:59]} 9. Nbd2 {[%clk 0:02:51]}  b6 {[%clk 0:02:52]} 10. Nxc4 {[%clk 0:01:58]}  Bb7 {[%clk 0:02:52]} 11. Rd1 {[%clk 0:01:58]}  Rc8 {[%clk 0:02:49]} 12. Bf4 {[%clk 0:01:50]}  Nd5 {[%clk 0:02:40]} 13. Nfe5 {[%clk 0:01:46]}  Nxe5 {[%clk 0:02:32]} 14. Bxe5 {[%clk 0:01:27]}  Nb4 {[%clk 0:01:53]} 15. Qb3 {[%clk 0:01:17]}  Bxg2 {[%clk 0:01:53]} 16. Kxg2 {[%clk 0:01:18]}  Qd5+ {[%clk 0:01:47]} 17. f3 {[%clk 0:01:16]}  Rfd8 {[%clk 0:01:41]} 18. e4 {[%clk 0:01:10]}  Qb7 {[%clk 0:01:42]} 19. Bf4 {[%clk 0:01:06]}  h6 {[%clk 0:01:26]} 20. Be3 {[%clk 0:01:06]}  a5 {[%clk 0:01:20]} 21. Rac1 {[%clk 0:01:04]}  Bf6 {[%clk 0:01:11]} 22. Na3 {[%clk 0:01:02]}  c6 {[%clk 0:01:04]} 23. Qc4 {[%clk 0:00:55]}  Rd7 {[%clk 0:01:02]} 24. Nc2 {[%clk 0:00:50]}  b5 {[%clk 0:01:01]} 25. Qb3 {[%clk 0:00:45]}  Nxc2 {[%clk 0:00:57]} 26. Rxc2 {[%clk 0:00:45]}  Rcd8 {[%clk 0:00:58]} 27. axb5 {[%clk 0:00:34]}  cxb5 {[%clk 0:00:57]} 28. Rcd2 {[%clk 0:00:24]}  a4 {[%clk 0:00:58]} 29. Qc2 {[%clk 0:00:15]}  Rc7 {[%clk 0:00:54]} 30. Qd3 {[%clk 0:00:15]}  b4 {[%clk 0:00:53]} 31. d5 {[%clk 0:00:15]}  exd5 {[%clk 0:00:53]} 32. exd5 {[%clk 0:00:16]}  Rcd7 {[%clk 0:00:52]} 33. Qc4 {[%clk 0:00:16]}  a3 {[%clk 0:00:48]} 34. bxa3 {[%clk 0:00:16]}  bxa3 {[%clk 0:00:49]} 35. Qa4 {[%clk 0:00:13]}  Bb2 {[%clk 0:00:36]} 36. Qc4 {[%clk 0:00:12]}  Re8 {[%clk 0:00:31]} 37. Bf2 {[%clk 0:00:08]}  Rc8 {[%clk 0:00:31]} 38. Qa2 {[%clk 0:00:08]}  Rc3 {[%clk 0:00:29]} 39. Rd3 {[%clk 0:00:06]}  Rc2 {[%clk 0:00:25]} 40. R1d2 {[%clk 0:00:07]}  Rxd2 {[%clk 0:00:21]} 41. Rxd2 {[%clk 0:00:07]}  Qb5 {[%clk 0:00:20]} 42. d6 {[%clk 0:00:06]}  Qc6 {[%clk 0:00:20]} 43. Qb3 {[%clk 0:00:02]}  Kh7 {[%clk 0:00:20]} 44. Qd3+ {[%clk 0:00:02]}  g6 {[%clk 0:00:21]} 45. Qb3 {[%clk 0:00:02]}  Kg7 {[%clk 0:00:18]} 46. Bd4+ {[%clk 0:00:02]}  Bxd4 {[%clk 0:00:18]} 47. Rxd4 {[%clk 0:00:03]}  Rxd6 {[%clk 0:00:16]} 48. Qe3 {[%clk 0:00:01]}  Rxd4 {[%clk 0:00:15]} 49. Qxd4+ {[%clk 0:00:02]}  Qf6 {[%clk 0:00:16]} 50. Qa4 {[%clk 0:00:03]}  Qb2+ {[%clk 0:00:16]} 51. Kh3 {[%clk 0:00:00]}  a2 {[%clk 0:00:17]} 0-1


[Site "https://www.chess.com"]

[Event "Titled Tuesday Blitz June 20 Early 2023"]
[White "Martinez Ramirez, Lennis"]
[Black "Svane, Rasmus"]
[WhiteFideId "3509079"]
[BlackFideId "4657101"]
[WhiteElo "2410"]
[BlackElo "2601"]
[Result "0-1"]
[Round "3"]
[TimeControl "180+2"]
[Date "2023.06.20"]
[WhiteClock "0:00:00"]
[BlackClock "0:01:26"]
[Board "19"]

1. c4 {[%clk 0:03:00]}  e6 {[%clk 0:02:52]} 2. Nc3 {[%clk 0:02:55]}  d5 {[%clk 0:02:52]} 3. d4 {[%clk 0:02:49]}  a6 {[%clk 0:02:51]} 4. cxd5 {[%clk 0:02:48]}  exd5 {[%clk 0:02:52]} 5. Bf4 {[%clk 0:02:47]}  Nf6 {[%clk 0:02:52]} 6. e3 {[%clk 0:02:44]}  Bd6 {[%clk 0:02:52]} 7. Bg3 {[%clk 0:02:35]}  c6 {[%clk 0:02:46]} 8. Bd3 {[%clk 0:02:34]}  Qe7 {[%clk 0:02:33]} 9. Bxd6 {[%clk 0:02:31]}  Qxd6 {[%clk 0:02:34]} 10. Qc2 {[%clk 0:02:31]}  a5 {[%clk 0:02:33]} 11. Nf3 {[%clk 0:02:26]}  Na6 {[%clk 0:02:32]} 12. a3 {[%clk 0:02:25]}  O-O {[%clk 0:02:29]} 13. h3 {[%clk 0:02:23]}  Re8 {[%clk 0:02:29]} 14. O-O {[%clk 0:02:15]}  Nc7 {[%clk 0:02:29]} 15. Ne5 {[%clk 0:02:14]}  c5 {[%clk 0:02:25]} 16. f4 {[%clk 0:02:14]}  c4 {[%clk 0:02:25]} 17. Be2 {[%clk 0:02:05]}  b5 {[%clk 0:02:25]} 18. Bf3 {[%clk 0:02:04]}  Bb7 {[%clk 0:02:25]} 19. Ne2 {[%clk 0:01:32]}  Ne4 {[%clk 0:02:24]} 20. Bxe4 {[%clk 0:01:29]}  dxe4 {[%clk 0:02:25]} 21. Ng3 {[%clk 0:00:59]}  f6 {[%clk 0:02:24]} 22. Ng4 {[%clk 0:00:58]}  Qe6 {[%clk 0:02:03]} 23. f5 {[%clk 0:00:57]}  Qf7 {[%clk 0:01:57]} 24. Qe2 {[%clk 0:00:46]}  b4 {[%clk 0:01:53]} 25. Rac1 {[%clk 0:00:42]}  Ba6 {[%clk 0:01:51]} 26. Rf4 {[%clk 0:00:28]}  c3 {[%clk 0:01:50]} 27. Qc2 {[%clk 0:00:27]}  Bd3 {[%clk 0:01:49]} 28. Qf2 {[%clk 0:00:18]}  Nd5 {[%clk 0:01:49]} 29. bxc3 {[%clk 0:00:18]}  bxc3 {[%clk 0:01:48]} 30. Ne2 {[%clk 0:00:10]}  Bxe2 {[%clk 0:01:45]} 31. Qxe2 {[%clk 0:00:11]}  Nxf4 {[%clk 0:01:46]} 32. exf4 {[%clk 0:00:11]}  Rac8 {[%clk 0:01:46]} 33. Ne3 {[%clk 0:00:11]}  Qb3 {[%clk 0:01:43]} 34. d5 {[%clk 0:00:11]}  c2 {[%clk 0:01:38]} 35. Kh2 {[%clk 0:00:04]}  Qd3 {[%clk 0:01:33]} 36. Rxc2 {[%clk 0:00:03]}  Rxc2 {[%clk 0:01:31]} 37. Qxc2 {[%clk 0:00:03]}  Qxe3 {[%clk 0:01:31]} 38. Qc7 {[%clk 0:00:00]}  Qd2 {[%clk 0:01:26]} 0-1


[Site "https://www.chess.com"]

[Event "Titled Tuesday Blitz June 20 Early 2023"]
[White "Postny, Evgeny"]
[Black "Kozak, Adam"]
[WhiteFideId "2804344"]
[BlackFideId "753246"]
[WhiteElo "2504"]
[BlackElo "2469"]
[Result "0-1"]
[Round "3"]
[TimeControl "180+2"]
[Date "2023.06.20"]
[WhiteClock "0:00:00"]
[BlackClock "0:00:18"]
[Board "22"]

1. e4 {[%clk 0:02:54]}  e5 {[%clk 0:02:58]} 2. Nf3 {[%clk 0:02:53]}  Nc6 {[%clk 0:02:58]} 3. Bb5 {[%clk 0:02:53]}  a6 {[%clk 0:02:56]} 4. Ba4 {[%clk 0:02:53]}  Nf6 {[%clk 0:02:57]} 5. O-O {[%clk 0:02:53]}  Be7 {[%clk 0:02:56]} 6. Re1 {[%clk 0:02:53]}  b5 {[%clk 0:02:56]} 7. Bb3 {[%clk 0:02:53]}  d6 {[%clk 0:02:57]} 8. c3 {[%clk 0:02:53]}  O-O {[%clk 0:02:58]} 9. h3 {[%clk 0:02:53]}  Na5 {[%clk 0:02:58]} 10. Bc2 {[%clk 0:02:53]}  c5 {[%clk 0:02:58]} 11. d4 {[%clk 0:02:54]}  Qc7 {[%clk 0:02:58]} 12. Nbd2 {[%clk 0:02:53]}  Nc6 {[%clk 0:02:58]} 13. d5 {[%clk 0:02:52]}  Nd8 {[%clk 0:02:59]} 14. a4 {[%clk 0:02:50]}  Rb8 {[%clk 0:02:59]} 15. axb5 {[%clk 0:02:50]}  axb5 {[%clk 0:02:58]} 16. b4 {[%clk 0:02:44]}  Ne8 {[%clk 0:02:58]} 17. bxc5 {[%clk 0:02:27]}  dxc5 {[%clk 0:02:58]} 18. c4 {[%clk 0:02:27]}  b4 {[%clk 0:02:57]} 19. Ba4 {[%clk 0:02:19]}  f6 {[%clk 0:02:50]} 20. Bxe8 {[%clk 0:02:00]}  Rxe8 {[%clk 0:02:49]} 21. Nb3 {[%clk 0:02:01]}  Bd6 {[%clk 0:02:43]} 22. Be3 {[%clk 0:01:57]}  Bd7 {[%clk 0:02:42]} 23. Re2 {[%clk 0:01:54]}  Nf7 {[%clk 0:02:38]} 24. Ne1 {[%clk 0:01:52]}  f5 {[%clk 0:02:37]} 25. exf5 {[%clk 0:01:52]}  Bxf5 {[%clk 0:02:37]} 26. Rea2 {[%clk 0:01:51]}  e4 {[%clk 0:02:26]} 27. Ra7 {[%clk 0:01:49]}  Qc8 {[%clk 0:02:22]} 28. R1a6 {[%clk 0:01:14]}  Rb7 {[%clk 0:02:10]} 29. Qa1 {[%clk 0:00:44]}  Rxa7 {[%clk 0:02:04]} 30. Rxa7 {[%clk 0:00:45]}  Ne5 {[%clk 0:01:56]} 31. Na5 {[%clk 0:00:20]}  Bd7 {[%clk 0:01:21]} 32. Nb7 {[%clk 0:00:17]}  Bf8 {[%clk 0:01:20]} 33. d6 {[%clk 0:00:12]}  Nxc4 {[%clk 0:01:10]} 34. Nxc5 {[%clk 0:00:11]}  Ne5 {[%clk 0:00:33]} 35. Nxd7 {[%clk 0:00:08]}  Nxd7 {[%clk 0:00:32]} 36. Qa2+ {[%clk 0:00:06]}  Kh8 {[%clk 0:00:33]} 37. Qf7 {[%clk 0:00:05]}  Rd8 {[%clk 0:00:23]} 38. Rc7 {[%clk 0:00:04]}  Ne5 {[%clk 0:00:20]} 39. Rxc8 {[%clk 0:00:02]}  Nxf7 {[%clk 0:00:20]} 40. Rxd8 {[%clk 0:00:02]}  Nxd8 {[%clk 0:00:21]} 41. d7 {[%clk 0:00:02]}  b3 {[%clk 0:00:22]} 42. Bd4 {[%clk 0:00:02]}  Be7 {[%clk 0:00:20]} 43. f3 {[%clk 0:00:00]}  Bf6 {[%clk 0:00:18]} 0-1


[Site "https://www.chess.com"]

[Event "Titled Tuesday Blitz June 20 Early 2023"]
[White "Shimanov, Aleksandr"]
[Black "Begmuratov, Alisher"]
[WhiteFideId "4198603"]
[BlackFideId "14203367"]
[WhiteElo "2631"]
[BlackElo "2387"]
[Result "1-0"]
[Round "3"]
[TimeControl "180+2"]
[Date "2023.06.20"]
[WhiteClock "0:00:15"]
[BlackClock "0:00:04"]
[Board "23"]

1. Nc3 {[%clk 0:02:53]}  c5 {[%clk 0:02:58]} 2. e4 {[%clk 0:02:52]}  Nc6 {[%clk 0:02:59]} 3. Nf3 {[%clk 0:02:51]}  g6 {[%clk 0:02:59]} 4. d4 {[%clk 0:02:51]}  cxd4 {[%clk 0:03:00]} 5. Nxd4 {[%clk 0:02:51]}  Bg7 {[%clk 0:03:00]} 6. Nxc6 {[%clk 0:02:52]}  bxc6 {[%clk 0:02:59]} 7. Bc4 {[%clk 0:02:53]}  d6 {[%clk 0:02:58]} 8. O-O {[%clk 0:02:53]}  Nf6 {[%clk 0:02:56]} 9. Bg5 {[%clk 0:02:52]}  O-O {[%clk 0:02:56]} 10. Qd2 {[%clk 0:02:52]}  Rb8 {[%clk 0:02:51]} 11. Bb3 {[%clk 0:02:52]}  Ba6 {[%clk 0:02:50]} 12. Rfe1 {[%clk 0:02:52]}  Qc7 {[%clk 0:02:46]} 13. Rad1 {[%clk 0:02:50]}  Rfe8 {[%clk 0:02:34]} 14. h3 {[%clk 0:02:44]}  Nd7 {[%clk 0:02:32]} 15. Qf4 {[%clk 0:02:41]}  Ne5 {[%clk 0:02:28]} 16. Qh4 {[%clk 0:02:37]}  Nc4 {[%clk 0:02:16]} 17. Bc1 {[%clk 0:02:33]}  e5 {[%clk 0:02:10]} 18. Bxc4 {[%clk 0:02:14]}  Bxc4 {[%clk 0:02:11]} 19. b3 {[%clk 0:02:15]}  Be6 {[%clk 0:02:09]} 20. Rd3 {[%clk 0:02:15]}  Rbd8 {[%clk 0:02:00]} 21. Bg5 {[%clk 0:02:13]}  Rd7 {[%clk 0:01:58]} 22. Bf6 {[%clk 0:02:12]}  Bxf6 {[%clk 0:01:45]} 23. Qxf6 {[%clk 0:02:12]}  Qd8 {[%clk 0:01:46]} 24. Qxd8 {[%clk 0:02:09]}  Rexd8 {[%clk 0:01:47]} 25. Na4 {[%clk 0:02:08]}  f5 {[%clk 0:01:39]} 26. f3 {[%clk 0:02:00]}  c5 {[%clk 0:01:32]} 27. Red1 {[%clk 0:01:54]}  Kf7 {[%clk 0:01:30]} 28. Kf2 {[%clk 0:01:48]}  Ke7 {[%clk 0:01:20]} 29. R3d2 {[%clk 0:01:45]}  c4 {[%clk 0:01:11]} 30. b4 {[%clk 0:01:40]}  Rb8 {[%clk 0:00:57]} 31. a3 {[%clk 0:01:34]}  a5 {[%clk 0:00:45]} 32. bxa5 {[%clk 0:01:34]}  Rb5 {[%clk 0:00:33]} 33. Nc3 {[%clk 0:01:22]}  Rxa5 {[%clk 0:00:32]} 34. a4 {[%clk 0:01:23]}  Ra6 {[%clk 0:00:20]} 35. Rb1 {[%clk 0:01:12]}  Raa7 {[%clk 0:00:20]} 36. Rb6 {[%clk 0:01:10]}  Rab7 {[%clk 0:00:15]} 37. Rb5 {[%clk 0:00:59]}  Rxb5 {[%clk 0:00:13]} 38. axb5 {[%clk 0:01:00]}  Ra7 {[%clk 0:00:12]} 39. Rd1 {[%clk 0:00:21]}  Ra3 {[%clk 0:00:12]} 40. Ne2 {[%clk 0:00:21]}  Ra2 {[%clk 0:00:12]} 41. Rc1 {[%clk 0:00:21]}  Rb2 {[%clk 0:00:12]} 42. Nc3 {[%clk 0:00:22]}  Kd7 {[%clk 0:00:12]} 43. Ke3 {[%clk 0:00:22]}  Kc7 {[%clk 0:00:12]} 44. Kd2 {[%clk 0:00:22]}  Kb6 {[%clk 0:00:13]} 45. Ra1 {[%clk 0:00:22]}  Rb4 {[%clk 0:00:12]} 46. Ra6+ {[%clk 0:00:21]}  Kc7 {[%clk 0:00:10]} 47. Ra7+ {[%clk 0:00:21]}  Kb6 {[%clk 0:00:10]} 48. Rxh7 {[%clk 0:00:21]}  fxe4 {[%clk 0:00:10]} 49. fxe4 {[%clk 0:00:22]}  d5 {[%clk 0:00:10]} 50. exd5 {[%clk 0:00:22]}  Bf5 {[%clk 0:00:10]} 51. g4 {[%clk 0:00:22]}  Bc8 {[%clk 0:00:10]} 52. Rg7 {[%clk 0:00:21]}  Kc5 {[%clk 0:00:10]} 53. Rc7+ {[%clk 0:00:20]}  Kd4 {[%clk 0:00:10]} 54. Rxc8 {[%clk 0:00:20]}  e4 {[%clk 0:00:10]} 55. Re8 {[%clk 0:00:18]}  Rb2 {[%clk 0:00:09]} 56. Rxe4+ {[%clk 0:00:18]}  Kc5 {[%clk 0:00:09]} 57. Re6 {[%clk 0:00:17]}  Kd4 {[%clk 0:00:10]} 58. d6 {[%clk 0:00:17]}  Kc5 {[%clk 0:00:08]} 59. d7 {[%clk 0:00:17]}  g5 {[%clk 0:00:08]} 60. d8=Q {[%clk 0:00:15]}  Kb4 {[%clk 0:00:04]} 61. Qd6+ {[%clk 0:00:15]} 1-0


[Site "https://www.chess.com"]

[Event "Titled Tuesday Blitz June 20 Early 2023"]
[White "Aravindh, Chithambaram VR."]
[Black "Goryachkina, Aleksandra"]
[WhiteFideId "5072786"]
[BlackFideId "4147103"]
[WhiteElo "2596"]
[BlackElo "2471"]
[Result "1/2-1/2"]
[Round "3"]
[TimeControl "180+2"]
[Date "2023.06.20"]
[WhiteClock "0:00:04"]
[BlackClock "0:00:04"]
[Board "25"]

1. g3 {[%clk 0:03:00]}  d5 {[%clk 0:02:57]} 2. Bg2 {[%clk 0:02:59]}  Nf6 {[%clk 0:02:52]} 3. Nf3 {[%clk 0:02:58]}  e6 {[%clk 0:02:52]} 4. O-O {[%clk 0:02:58]}  Be7 {[%clk 0:02:52]} 5. b3 {[%clk 0:02:57]}  O-O {[%clk 0:02:51]} 6. c4 {[%clk 0:02:58]}  d4 {[%clk 0:02:42]} 7. e3 {[%clk 0:02:58]}  c5 {[%clk 0:02:42]} 8. exd4 {[%clk 0:02:57]}  cxd4 {[%clk 0:02:42]} 9. d3 {[%clk 0:02:58]}  Nc6 {[%clk 0:02:42]} 10. Re1 {[%clk 0:02:58]}  Re8 {[%clk 0:02:30]} 11. a3 {[%clk 0:02:38]}  a5 {[%clk 0:02:29]} 12. Ra2 {[%clk 0:02:28]}  Nd7 {[%clk 0:02:25]} 13. Bf4 {[%clk 0:02:23]}  Nc5 {[%clk 0:02:20]} 14. Rb2 {[%clk 0:01:56]}  Bd7 {[%clk 0:02:09]} 15. Ne5 {[%clk 0:01:53]}  Bf6 {[%clk 0:01:13]} 16. Nxd7 {[%clk 0:00:55]}  Qxd7 {[%clk 0:01:13]} 17. Rbe2 {[%clk 0:00:50]}  h6 {[%clk 0:00:55]} 18. Qc2 {[%clk 0:00:49]}  Be7 {[%clk 0:00:31]} 19. Bc1 {[%clk 0:00:45]}  Bf8 {[%clk 0:00:23]} 20. Nd2 {[%clk 0:00:45]}  Rac8 {[%clk 0:00:23]} 21. Qb1 {[%clk 0:00:44]}  b6 {[%clk 0:00:15]} 22. Nf3 {[%clk 0:00:40]}  g6 {[%clk 0:00:11]} 23. h4 {[%clk 0:00:29]}  Bg7 {[%clk 0:00:10]} 24. Bf4 {[%clk 0:00:28]}  Re7 {[%clk 0:00:10]} 25. Bd2 {[%clk 0:00:14]}  Rce8 {[%clk 0:00:09]} 26. b4 {[%clk 0:00:06]}  axb4 {[%clk 0:00:09]} 27. axb4 {[%clk 0:00:07]}  Na4 {[%clk 0:00:10]} 28. b5 {[%clk 0:00:08]}  Nb8 {[%clk 0:00:08]} 29. Ne5 {[%clk 0:00:08]}  Qc7 {[%clk 0:00:05]} 30. Qc2 {[%clk 0:00:07]}  Nc5 {[%clk 0:00:04]} 31. Nc6 {[%clk 0:00:07]}  Nxc6 {[%clk 0:00:03]} 32. Bxc6 {[%clk 0:00:08]}  Rd8 {[%clk 0:00:02]} 33. Bb4 {[%clk 0:00:08]}  Qd6 {[%clk 0:00:01]} 34. Ra1 {[%clk 0:00:07]}  Kh8 {[%clk 0:00:01]} 35. Bf3 {[%clk 0:00:05]}  e5 {[%clk 0:00:02]} 36. Bd5 {[%clk 0:00:05]}  f5 {[%clk 0:00:02]} 37. Ra6 {[%clk 0:00:04]}  Rde8 {[%clk 0:00:01]} 38. Qd1 {[%clk 0:00:04]}  e4 {[%clk 0:00:01]} 39. Ra8 {[%clk 0:00:03]}  Rxa8 {[%clk 0:00:01]} 40. Bxa8 {[%clk 0:00:04]}  exd3 {[%clk 0:00:01]} 41. Rxe7 {[%clk 0:00:04]}  Qxe7 {[%clk 0:00:02]} 42. Bxc5 {[%clk 0:00:05]}  Qxc5 {[%clk 0:00:02]} 43. Qxd3 {[%clk 0:00:06]}  Qe5 {[%clk 0:00:03]} 44. Bd5 {[%clk 0:00:05]}  h5 {[%clk 0:00:03]} 45. Kg2 {[%clk 0:00:06]}  Kh7 {[%clk 0:00:04]} 46. Qf3 {[%clk 0:00:06]}  Qd6 {[%clk 0:00:04]} 47. Qd3 {[%clk 0:00:05]}  Qc5 {[%clk 0:00:04]} 48. Bf3 {[%clk 0:00:05]}  Qb4 {[%clk 0:00:04]} 49. Bd5 {[%clk 0:00:05]}  Qc5 {[%clk 0:00:05]} 50. Qe2 {[%clk 0:00:05]}  Qd6 {[%clk 0:00:05]} 51. Qe8 {[%clk 0:00:05]}  Qe5 {[%clk 0:00:04]} 52. Qg8+ {[%clk 0:00:04]}  Kh6 {[%clk 0:00:04]} 53. Qd8 {[%clk 0:00:05]}  Qf6 {[%clk 0:00:04]} 54. Qd7 {[%clk 0:00:05]}  d3 {[%clk 0:00:03]} 55. Bf3 {[%clk 0:00:05]}  Qd4 {[%clk 0:00:04]} 56. Qe6 {[%clk 0:00:05]}  d2 {[%clk 0:00:03]} 57. Qe2 {[%clk 0:00:05]}  Qd6 {[%clk 0:00:03]} 58. Qe3+ {[%clk 0:00:05]}  Kh7 {[%clk 0:00:03]} 59. Qe2 {[%clk 0:00:06]}  Qd4 {[%clk 0:00:03]} 60. Kg1 {[%clk 0:00:04]}  Kh8 {[%clk 0:00:02]} 61. Kg2 {[%clk 0:00:04]}  Kh7 {[%clk 0:00:03]} 62. Kh2 {[%clk 0:00:04]}  Kh6 {[%clk 0:00:03]} 63. Kg2 {[%clk 0:00:04]}  Kh7 {[%clk 0:00:04]} 1/2-1/2


[Site "https://www.chess.com"]

[Event "Titled Tuesday Blitz June 20 Early 2023"]
[White "Sjugirov, Sanan"]
[Black "Soham Kamotra"]
[WhiteFideId "4189302"]
[BlackFideId "46647490"]
[WhiteElo "2569"]
[BlackElo "2209"]
[Result "1-0"]
[Round "3"]
[TimeControl "180+2"]
[Date "2023.06.20"]
[WhiteClock "0:00:25"]
[BlackClock "0:00:00"]
[Board "28"]

1. e4 {[%clk 0:03:00]}  c6 {[%clk 0:02:59]} 2. d4 {[%clk 0:03:00]}  d5 {[%clk 0:02:59]} 3. e5 {[%clk 0:03:00]}  Bf5 {[%clk 0:02:58]} 4. Nf3 {[%clk 0:03:00]}  e6 {[%clk 0:02:58]} 5. Be2 {[%clk 0:03:01]}  Ne7 {[%clk 0:02:57]} 6. c3 {[%clk 0:02:59]}  c5 {[%clk 0:02:58]} 7. dxc5 {[%clk 0:02:59]}  Nec6 {[%clk 0:02:52]} 8. b4 {[%clk 0:02:57]}  Nd7 {[%clk 0:02:53]} 9. O-O {[%clk 0:02:24]}  a5 {[%clk 0:02:52]} 10. Bb5 {[%clk 0:02:12]}  axb4 {[%clk 0:02:42]} 11. Bxc6 {[%clk 0:02:12]}  bxc6 {[%clk 0:02:43]} 12. cxb4 {[%clk 0:02:12]}  Qb8 {[%clk 0:02:43]} 13. a3 {[%clk 0:01:39]}  Nxe5 {[%clk 0:02:07]} 14. Nd4 {[%clk 0:01:31]}  Bxb1 {[%clk 0:01:48]} 15. Rxb1 {[%clk 0:01:30]}  Qb7 {[%clk 0:01:46]} 16. Qh5 {[%clk 0:01:06]}  Ng6 {[%clk 0:01:35]} 17. Bb2 {[%clk 0:00:45]}  Be7 {[%clk 0:01:32]} 18. f4 {[%clk 0:00:43]}  Nf8 {[%clk 0:00:40]} 19. Rfe1 {[%clk 0:00:33]}  Bf6 {[%clk 0:00:21]} 20. Nxe6 {[%clk 0:00:26]}  Nxe6 {[%clk 0:00:22]} 21. Rxe6+ {[%clk 0:00:26]}  Kd8 {[%clk 0:00:00]} 22. Rxf6 {[%clk 0:00:25]} 1-0


[Site "https://www.chess.com"]

[Event "Titled Tuesday Blitz June 20 Early 2023"]
[White "Kvaloy, Aksel Bu"]
[Black "Baskakov, Egor"]
[WhiteFideId "1528815"]
[BlackFideId "24197866"]
[WhiteElo "2318"]
[BlackElo "2225"]
[Result "0-1"]
[Round "3"]
[TimeControl "180+2"]
[Date "2023.06.20"]
[WhiteClock "0:00:01"]
[BlackClock "0:00:59"]
[Board "29"]

1. e4 {[%clk 0:03:00]}  c5 {[%clk 0:02:59]} 2. Nf3 {[%clk 0:03:00]}  Nf6 {[%clk 0:03:00]} 3. Nc3 {[%clk 0:03:00]}  d5 {[%clk 0:02:58]} 4. exd5 {[%clk 0:03:00]}  Nxd5 {[%clk 0:02:59]} 5. Bb5+ {[%clk 0:03:00]}  Bd7 {[%clk 0:02:59]} 6. Ne5 {[%clk 0:03:00]}  e6 {[%clk 0:02:59]} 7. Nxd7 {[%clk 0:02:57]}  Nxd7 {[%clk 0:02:59]} 8. Nxd5 {[%clk 0:02:53]}  exd5 {[%clk 0:03:00]} 9. O-O {[%clk 0:02:53]}  Be7 {[%clk 0:02:59]} 10. d4 {[%clk 0:02:50]}  O-O {[%clk 0:02:59]} 11. dxc5 {[%clk 0:02:46]}  Nxc5 {[%clk 0:02:59]} 12. Be3 {[%clk 0:02:45]}  Ne6 {[%clk 0:02:58]} 13. c3 {[%clk 0:02:41]}  Bf6 {[%clk 0:02:57]} 14. Qd2 {[%clk 0:02:38]}  d4 {[%clk 0:02:57]} 15. cxd4 {[%clk 0:02:35]}  Bxd4 {[%clk 0:02:50]} 16. Bc4 {[%clk 0:02:23]}  Bxe3 {[%clk 0:02:45]} 17. Qxe3 {[%clk 0:02:23]}  Re8 {[%clk 0:02:45]} 18. Rfd1 {[%clk 0:02:23]}  Qf6 {[%clk 0:02:44]} 19. Bxe6 {[%clk 0:02:00]}  Rxe6 {[%clk 0:02:44]} 20. Qd3 {[%clk 0:01:57]}  Qxb2 {[%clk 0:02:35]} 21. Rab1 {[%clk 0:01:53]}  Qxa2 {[%clk 0:02:33]} 22. Rxb7 {[%clk 0:01:49]}  Rae8 {[%clk 0:02:31]} 23. h4 {[%clk 0:01:46]}  g6 {[%clk 0:02:28]} 24. Qf3 {[%clk 0:01:04]}  Re5 {[%clk 0:01:57]} 25. Kh2 {[%clk 0:00:24]}  Rf5 {[%clk 0:01:53]} 26. Qc6 {[%clk 0:00:24]}  Rf8 {[%clk 0:01:36]} 27. f3 {[%clk 0:00:20]}  a5 {[%clk 0:01:35]} 28. Ra7 {[%clk 0:00:19]}  Rf4 {[%clk 0:01:27]} 29. Kg3 {[%clk 0:00:18]}  Rxh4 {[%clk 0:01:20]} 30. Kxh4 {[%clk 0:00:18]}  Qf2+ {[%clk 0:01:20]} 31. Kg5 {[%clk 0:00:11]}  Qxa7 {[%clk 0:01:21]} 32. Kf6 {[%clk 0:00:10]}  Qe3 {[%clk 0:01:16]} 33. Qd6 {[%clk 0:00:07]}  Qc3+ {[%clk 0:01:14]} 34. Kg5 {[%clk 0:00:07]}  Qg7 {[%clk 0:01:06]} 35. Qa6 {[%clk 0:00:03]}  h6+ {[%clk 0:01:07]} 36. Kg4 {[%clk 0:00:03]}  Qe5 {[%clk 0:01:01]} 37. Rb1 {[%clk 0:00:03]}  Qf5+ {[%clk 0:01:00]} 38. Kh4 {[%clk 0:00:04]}  Qxb1 {[%clk 0:01:00]} 39. Qxa5 {[%clk 0:00:05]}  Qf5 {[%clk 0:00:59]} 40. Qe5 {[%clk 0:00:01]}  Qxe5 {[%clk 0:00:59]} 0-1


[Site "https://www.chess.com"]

[Event "Titled Tuesday Blitz June 20 Early 2023"]
[White "Henriquez Villagra, Cristobal"]
[Black "Munkhgal, Gombosuren"]
[WhiteFideId "3409350"]
[BlackFideId "4901266"]
[WhiteElo "2542"]
[BlackElo "2528"]
[Result "1-0"]
[Round "3"]
[TimeControl "180+2"]
[Date "2023.06.20"]
[WhiteClock "0:00:52"]
[BlackClock "0:00:47"]
[Board "30"]

1. Nf3 {[%clk 0:02:50]}  Nf6 {[%clk 0:02:59]} 2. g3 {[%clk 0:02:40]}  d5 {[%clk 0:02:59]} 3. Bg2 {[%clk 0:02:38]}  e6 {[%clk 0:03:00]} 4. O-O {[%clk 0:02:36]}  Be7 {[%clk 0:03:01]} 5. d3 {[%clk 0:02:35]}  O-O {[%clk 0:03:00]} 6. Nc3 {[%clk 0:02:31]}  c5 {[%clk 0:03:00]} 7. Bd2 {[%clk 0:02:32]}  Nc6 {[%clk 0:03:00]} 8. e4 {[%clk 0:02:32]}  d4 {[%clk 0:03:00]} 9. Nb1 {[%clk 0:02:28]}  e5 {[%clk 0:03:00]} 10. Na3 {[%clk 0:02:28]}  Be6 {[%clk 0:02:56]} 11. Ng5 {[%clk 0:02:26]}  Bg4 {[%clk 0:02:56]} 12. f3 {[%clk 0:02:27]}  Bd7 {[%clk 0:02:56]} 13. f4 {[%clk 0:02:22]}  Ng4 {[%clk 0:02:53]} 14. Nf3 {[%clk 0:02:22]}  exf4 {[%clk 0:02:46]} 15. gxf4 {[%clk 0:02:15]}  f5 {[%clk 0:02:46]} 16. Qe1 {[%clk 0:02:16]}  Be6 {[%clk 0:02:33]} 17. Qg3 {[%clk 0:02:01]}  Ne3 {[%clk 0:02:28]} 18. Bxe3 {[%clk 0:01:55]}  dxe3 {[%clk 0:02:29]} 19. Rae1 {[%clk 0:01:55]}  Qb6 {[%clk 0:02:18]} 20. b3 {[%clk 0:01:44]}  Qa5 {[%clk 0:02:10]} 21. Nc4 {[%clk 0:01:42]}  Bxc4 {[%clk 0:02:10]} 22. bxc4 {[%clk 0:01:43]}  Nd4 {[%clk 0:02:03]} 23. Rxe3 {[%clk 0:01:33]}  Nxc2 {[%clk 0:02:02]} 24. Re2 {[%clk 0:01:33]}  Nd4 {[%clk 0:02:01]} 25. Nxd4 {[%clk 0:01:29]}  cxd4 {[%clk 0:02:02]} 26. exf5 {[%clk 0:01:26]}  Bf6 {[%clk 0:02:03]} 27. Bd5+ {[%clk 0:01:25]}  Kh8 {[%clk 0:02:02]} 28. Qg4 {[%clk 0:01:01]}  Qc3 {[%clk 0:02:00]} 29. Rf3 {[%clk 0:00:58]}  Rae8 {[%clk 0:01:23]} 30. Be6 {[%clk 0:00:58]}  Bd8 {[%clk 0:01:12]} 31. Rh3 {[%clk 0:00:58]}  Rf6 {[%clk 0:01:12]} 32. Qh5 {[%clk 0:00:55]}  Qc1+ {[%clk 0:01:06]} 33. Kg2 {[%clk 0:00:54]}  Rexe6 {[%clk 0:00:47]} 34. Qxh7# {[%clk 0:00:52]} 1-0


[Site "https://www.chess.com"]